bitfinex/quotes_ETHUSD_20250923
["timestamp","ask_amount","ask_price","bid_price","bid_amount"]
[1758594036290,0.93122973,4180.3,4180.1,1.31]
[1758594036450,0.7091,4180.2,4180.1,1.31]
[1758594036993,0.7091,4180.2,4179.5,0.004]
[1758594036994,2.39228726,4180.1,4179.5,0.004]
[1758594037176,1.44304284,4180.2,4179.5,3.416]
[1758594037177,1.74655098,4180.0,4179.5,3.416]
[1758594037487,1.44304284,4179.9,4179.5,3.416]
[1758594037689,0.93123529,4179.8,4179.5,3.416]
[1758594037881,5.39217912,4180.3,4179.5,3.416]
[1758594037882,0.93123529,4179.7,4179.5,3.416]
[1758594038077,0.22213529,4179.6,4179.5,3.416]
[1758594038389,0.7091,4179.6,4179.5,3.416]
[1758594043033,3.38926635,4179.6,4179.5,0.004]
[1758594043190,6.32324967,4179.6,4179.5,0.004]
[1758594045218,6.10167345,4179.6,4179.5,0.004]
[1758594045831,6.22087345,4179.6,4179.5,0.004]
[1758594047025,6.44197278,4179.6,4179.5,0.004]
[1758594047200,7.73872109,4179.6,4179.5,0.004]
[1758594052027,11.52962176,4179.6,4179.5,0.004]
[1758594053202,7.51762176,4179.6,4179.5,0.004]
[1758594053437,11.52962176,4179.6,4179.5,0.004]
[1758594055236,11.75037179,4179.6,4179.5,0.004]
[1758594055747,11.52962176,4179.6,4179.5,0.004]
[1758594056247,11.75044748,4179.6,4179.5,0.004]
[1758594057533,11.7505468,4179.6,4179.5,0.004]
[1758594058040,12.25949248,4179.6,4179.5,0.004]
[1758594058550,18.56008276,4179.6,4179.5,0.004]
[1758594058747,14.06808276,4179.6,4179.5,0.004]
[1758594059047,11.7342468,4179.6,4179.5,0.004]
[1758594059246,12.24382798,4179.6,4179.5,0.004]
[1758594059451,12.24382798,4179.6,4179.1,0.004]
[1758594059452,2.39268794,4179.4,4179.1,0.004]
[1758594059650,11.81259273,4179.2,4179.1,0.004]
[1758594059957,12.54309895,4179.2,4179.1,0.004]
[1758594060245,10.36940867,4179.2,4179.1,0.004]
[1758594060547,12.58700116,4179.2,4179.1,0.004]
[1758594061110,2.3928597,4179.1,4178.3,0.1232]
[1758594061306,5.39308875,4178.7,4178.3,0.004]
[1758594061542,10.91419734,4178.7,4178.3,0.004]
[1758594061733,13.73756683,4178.7,4178.3,0.004]
[1758594062115,13.09981818,4178.7,4178.3,0.004]
[1758594063354,9.30059028,4178.4,4178.3,0.004]
[1758594063513,18.64521079,4178.4,4178.3,0.004]
[1758594063710,21.76071664,4178.4,4178.3,0.004]
[1758594064648,15.46012636,4178.4,4178.3,0.004]
[1758594065424,14.76432636,4178.4,4178.3,0.004]
[1758594065645,16.73771776,4178.4,4178.3,0.004]
[1758594066042,9.37212636,4178.4,4178.3,0.004]
[1758594066242,2.39337513,4178.2,4178.1,0.004]
[1758594066429,10.27473507,4178.2,4178.1,0.004]
[1758594066765,10.97053507,4178.2,4178.1,0.004]
[1758594067628,10.97208104,4178.2,4178.1,0.004]
[1758594068040,6.25828104,4178.2,4178.1,0.2297]
[1758594068267,6.12542732,4178.2,4178.1,0.1232]
[1758594068565,6.2585594,4178.2,4178.1,0.1232]
[1758594068764,7.11054459,4178.2,4178.1,0.1232]
[1758594068967,8.6024471,4178.2,4178.1,0.1232]
[1758594069166,8.44626191,4178.2,4178.1,0.004]
[1758594069393,10.51526191,4178.2,4178.1,1e-08]
[1758594069666,5.3934897,4178.0,4177.8,0.004]
[1758594069870,9.44230587,4177.9,4177.8,0.004]
[1758594070044,10.13810587,4177.9,4177.8,0.004]
[1758594070249,12.53165286,4177.9,4177.8,0.004]
[1758594070646,5.39360428,4177.8,4177.7,0.004]
[1758594070986,5.39360428,4177.8,4176.8,0.004]
[1758594070987,5.39412004,4176.9,4176.8,0.004]
[1758594071146,24.97264214,4176.7,4176.3,0.004]
[1758594071471,31.61723776,4176.7,4176.6,1e-08]
[1758594071767,2.39434933,4176.5,4176.3,1e-08]
[1758594071967,12.78042853,4176.4,4176.3,1e-08]
[1758594072183,14.82343045,4176.4,4176.3,1e-08]
[1758594073158,15.17730261,4176.4,4176.3,1e-08]
[1758594073361,15.17457801,4176.4,4176.3,1e-08]
[1758594073571,15.1745627,4176.4,4176.3,1e-08]
[1758594073761,13.47604357,4176.4,4176.3,1e-08]
[1758594073962,15.17458571,4176.4,4176.3,1e-08]
[1758594074166,13.47604357,4176.4,4176.3,1e-08]
[1758594075279,13.47403517,4176.4,4176.3,1e-08]
[1758594076279,2.39509484,4175.2,4175.1,0.4736]
[1758594076478,2.39509484,4175.2,4173.6,0.792]
[1758594076479,2.39515221,4175.1,4174.8,0.4736]
[1758594076667,2.39526695,4174.9,4174.8,0.2432]
[1758594076983,3.1255558,4174.9,4174.8,0.2432]
[1758594077779,1.57781862,4174.9,4174.8,0.7168]
[1758594078495,3.97308557,4174.9,4174.8,0.7168]
[1758594080033,3.97308557,4174.9,4174.7,0.1192]
[1758594080034,2.39532432,4174.8,4174.7,0.1192]
[1758594080311,3.12561317,4174.8,4174.7,0.3624]
[1758594081466,1.57603894,4174.8,4174.7,0.836]
[1758594081900,3.97136326,4174.8,4174.7,0.836]
[1758594083733,1.57603894,4174.8,4174.7,0.836]
[1758594084400,0.73028885,4174.8,4174.7,0.836]
[1758594085437,0.73028885,4174.8,4174.7,3.2313817]
[1758594086420,0.73028885,4174.8,4174.7,4.0233817]
[1758594086617,0.2211701,4174.8,4174.7,4.0233817]
[1758594086834,0.2211701,4174.8,4174.7,0.836]
[1758594087057,0.72923667,4174.8,4174.7,1.628]
[1758594087218,0.001,4175.3,4175.2,2.39509484]
[1758594087533,0.73007631,4175.3,4175.2,3.11189484]
[1758594087840,0.22164449,4175.3,4175.2,3.11189484]
[1758594088199,0.22176576,4175.3,4175.2,3.92784578]
[1758594088501,0.22177637,4175.3,4175.2,3.90389484]
[1758594088701,0.2217821,4175.3,4175.2,3.90389484]
[1758594089012,0.2217821,4175.3,4175.2,7.96789484]
[1758594089330,0.22193124,4175.3,4175.2,7.96789484]
[1758594089935,0.22193124,4175.3,4175.2,4.7808]
[1758594090105,0.22193124,4175.3,4175.2,7.17589484]
[1758594092728,0.001,4175.3,4175.2,7.96789484]
[1758594095363,0.001,4175.3,4175.2,7.96289484]
[1758594095554,0.001,4175.3,4175.2,10.03289484]
[1758594095928,0.001,4175.3,4175.2,10.03089484]
[1758594097270,0.001,4175.3,4175.2,10.15009484]
[1758594098909,0.001,4175.3,4175.2,4.02309484]
[1758594099117,0.001,4175.3,4175.2,10.14809484]
[1758594101271,0.001,4175.3,4175.2,0.1192]
[1758594101467,0.001,4175.3,4174.8,0.4736]
[1758594101468,0.91563547,4175.3,4174.8,0.004]
[1758594101706,1.42598178,4175.2,4174.9,1.649]
[1758594101912,1.42598178,4175.1,4174.9,1.649]
[1758594102216,2.39510155,4175.2,4174.9,1.649]
[1758594102217,1.42598178,4175.0,4174.9,1.649]
[1758594103594,0.73328178,4175.0,4174.9,1.649]
[1758594104203,0.22193547,4175.0,4174.9,1.649]
[1758594104980,0.001,4175.3,4174.9,1.649]
[1758594105176,0.73323843,4175.2,4174.9,1.649]
[1758594105378,0.22192117,4175.1,4174.9,1.649]
[1758594105710,2.64319132,4175.3,4174.9,1.649]
[1758594105906,0.73326374,4175.2,4174.9,1.649]
[1758594106109,0.2219286,4175.1,4174.9,1.649]
[1758594106312,0.2481,4175.3,4174.9,1.649]
[1758594106511,0.73330559,4175.2,4174.9,1.649]
[1758594106716,0.22194066,4175.1,4174.9,1.8862]
[1758594106924,0.001,4175.3,4174.9,1.8862]
[1758594107111,0.73330641,4175.2,4174.9,1.8862]
[1758594107282,0.22194066,4175.1,4174.9,1.8862]
[1758594107482,0.001,4175.3,4174.9,1.8862]
[1758594107817,0.73338412,4175.2,4174.9,1.8862]
[1758594108015,0.22196471,4175.1,4174.9,1.649]
[1758594108183,0.001,4175.3,4174.9,1.649]
[1758594108384,0.73349192,4175.2,4174.9,1.649]
[1758594108591,0.2357,4175.3,4174.9,1.649]
[1758594108886,0.001,4175.3,4175.0,0.69845209]
[1758594109084,0.001,4175.3,4175.1,0.6745]
[1758594109306,0.001,4175.3,4175.2,2.39509484]
[1758594109494,0.001,4175.3,4175.2,3.06959484]
[1758594110531,0.001,4175.3,4174.8,0.2412]
[1758594110817,0.001,4175.3,4175.0,2.07]
[1758594111083,0.001,4175.3,4175.0,4.46517358]
[1758594111304,0.001,4175.3,4175.2,2.39509484]
[1758594111633,0.001,4175.3,4175.2,2.51429484]
[1758594111784,0.001,4175.3,4175.2,3.18879484]
[1758594111989,0.001,4175.3,4175.2,3.98079484]
[1758594113286,0.001,4175.3,4175.2,4.00474578]
[1758594114419,0.001,4175.3,4175.2,8.05074578]
[1758594114586,0.001,4175.3,4175.2,8.02679484]
[1758594117488,0.001,4175.3,4175.2,11.02679484]
[1758594117734,0.001,4175.3,4175.2,10.90759484]
[1758594118669,0.001,4175.3,4175.2,6.86159484]
[1758594118832,0.001,4175.3,4175.2,15.40259484]
[1758594119043,0.001,4175.3,4175.2,19.44559484]
[1758594119237,0.001,4175.8,4175.7,3.18680805]
[1758594119542,0.001,4175.8,4175.7,10.25375613]
[1758594119777,0.001,4175.8,4175.7,10.90430805]
[1758594126162,0.001,4175.8,4175.7,6.86130805]
[1758594126394,0.001,4175.8,4175.7,19.43830805]
[1758594127710,0.001,4175.8,4175.7,19.55750805]
[1758594127863,0.001,4175.8,4175.7,11.62200805]
[1758594128269,0.001,4175.8,4175.7,5.51400805]
[1758594128443,0.001,4175.8,4175.7,11.62000805]
[1758594129379,0.001,4175.8,4175.7,12.41200805]
[1758594129860,0.001,4175.8,4175.7,13.08650805]
[1758594130781,0.001,4175.8,4175.0,0.46748745]
[1758594130957,0.001,4175.8,4175.1,6.105]
[1758594130958,0.6811,4175.7,4175.1,6.105]
[1758594131152,0.6811,4175.6,4175.2,8.50409484]
[1758594131348,0.6811,4175.5,4175.4,0.792]
[1758594131590,0.6811,4175.5,4175.4,4.831]
[1758594131770,0.6811,4175.5,4175.4,4.039]
[1758594132172,0.6811,4175.5,4175.4,4.831]
[1758594133249,0.6811,4175.5,4175.4,2.07]
[1758594133449,0.6811,4175.5,4174.8,0.004]
[1758594133760,2.39526695,4174.9,4174.8,0.004]
[1758594133954,2.63479364,4174.9,4174.8,0.004]
[1758594134259,3.31589364,4174.9,4174.8,0.004]
[1758594134846,6.43476571,4174.9,4174.8,0.004]
[1758594135154,6.31589364,4174.9,4174.8,0.004]
[1758594140570,3.92062669,4174.9,4174.8,0.004]
[1758594140753,6.31589364,4174.9,4174.8,0.1232]
[1758594141491,3.92062669,4174.9,4174.8,0.1232]
[1758594141873,6.31589364,4174.9,4174.8,0.1232]
[1758594145207,6.31589364,4174.9,4174.8,0.004]
[1758594150530,2.3953817,4174.7,4174.6,0.004]
[1758594150716,9.4353817,4174.7,4174.6,0.004]
[1758594150924,10.1148817,4174.7,4174.6,0.004]
[1758594153425,10.62353021,4174.7,4174.6,0.004]
[1758594153925,10.1148817,4174.7,4174.6,0.004]
[1758594154129,11.75709988,4174.7,4174.6,0.004]
[1758594154302,12.26593444,4174.7,4174.6,0.004]
[1758594156002,7.54643444,4174.7,4174.6,0.004]
[1758594156199,11.87529988,4174.7,4174.6,0.004]
[1758594156601,12.3846325,4174.7,4174.6,0.004]
[1758594157339,12.60592301,4174.7,4174.6,0.004]
[1758594158550,12.73877095,4174.7,4174.6,0.004]
[1758594158700,13.24366712,4174.7,4174.6,0.004]
[1758594159105,13.37661273,4174.7,4174.6,0.004]
[1758594159326,12.73886862,4174.7,4174.6,0.004]
[1758594159655,14.80886862,4174.7,4174.6,0.004]
[1758594160208,15.65482437,4174.7,4174.6,0.004]
[1758594161230,14.80886862,4174.7,4174.6,0.004]
[1758594161707,8.69986862,4174.7,4174.6,0.004]
[1758594161907,14.80886862,4174.7,4174.6,0.004]
[1758594162307,16.08016328,4174.7,4174.6,0.004]
[1758594162517,22.39711508,4174.7,4174.6,0.004]
[1758594162938,16.08016328,4174.7,4174.6,0.004]
[1758594163157,16.08016328,4174.7,4174.4,0.004]
[1758594163158,2.39549646,4174.5,4174.4,0.004]
[1758594163457,17.33657676,4174.5,4174.4,0.004]
[1758594163658,17.56737676,4174.5,4174.4,0.004]
[1758594164742,17.33657676,4174.5,4174.4,0.004]
[1758594165059,17.56737676,4174.5,4174.4,0.004]
[1758594165259,16.7343546,4174.5,4174.4,0.004]
[1758594166073,18.3556546,4174.5,4174.4,0.004]
[1758594166962,18.8261546,4174.5,4174.4,0.004]
[1758594167764,18.1248546,4174.5,4174.4,0.004]
[1758594167923,18.3619546,4174.5,4174.4,0.004]
[1758594168128,21.8324546,4174.5,4174.4,0.004]
[1758594169069,21.1248546,4174.5,4174.4,0.004]
[1758594169464,21.3619546,4174.5,4174.4,0.004]
[1758594170231,19.2909546,4174.5,4174.4,0.004]
[1758594170439,21.1208546,4174.5,4174.4,0.004]
[1758594170969,21.3579546,4174.5,4174.4,0.004]
[1758594171479,21.1208546,4174.5,4174.4,0.004]
[1758594172170,15.0188546,4174.5,4174.4,0.004]
[1758594172370,12.7329028,4174.5,4174.4,0.7016]
[1758594172784,12.7329028,4174.5,4174.4,0.004]
[1758594173443,12.7339028,4174.5,4174.4,0.7016]
[1758594175539,12.7339028,4174.5,4174.4,0.2317]
[1758594175741,12.7339028,4174.5,4174.4,0.7016]
[1758594176137,12.7329028,4174.5,4174.4,0.7016]
[1758594176769,12.7329028,4174.5,4174.4,0.004]
[1758594177473,12.7329028,4174.5,4174.4,0.2317]
[1758594177678,12.7329028,4174.5,4174.4,0.15267615]
[1758594178188,2.39555385,4174.4,4174.3,0.004]
[1758594178389,5.6552216,4174.4,4174.3,0.4739]
[1758594179155,6.94008461,4174.4,4174.3,0.4739]
[1758594180408,11.9721734,4174.4,4174.3,0.004]
[1758594181406,6.94009696,4174.4,4174.3,0.7016]
[1758594181568,9.6832216,4174.4,4174.3,0.7016]
[1758594181980,5.6552216,4174.4,4174.3,0.7016]
[1758594182158,9.6832216,4174.4,4174.3,0.7016]
[1758594182467,0.86356874,4174.4,4174.3,0.8208]
[1758594182665,0.73062313,4174.4,4174.3,0.8208]
[1758594184262,0.73485986,4174.4,4174.3,0.8208]
[1758594184779,3.13041371,4174.4,4174.3,0.8208]
[1758594185159,2.61684436,4174.4,4174.3,0.8208]
[1758594185361,2.39555385,4174.4,4174.3,0.8208]
[1758594188682,2.39555385,4174.4,4174.3,0.004]
[1758594188683,10.93645835,4174.4,4174.3,0.004]
[1758594188881,2.39566863,4174.2,4174.0,0.004]
[1758594189140,13.60998317,4174.1,4174.0,0.004]
[1758594189270,16.45249041,4174.1,4174.0,0.004]
[1758594189786,19.45249041,4174.1,4174.0,0.004]
[1758594190096,9.10753861,4174.1,4174.0,0.004]
[1758594190298,19.45249041,4174.1,4174.0,0.004]
[1758594190693,18.98199041,4174.1,4174.0,0.004]
[1758594191284,9.27799193,4174.1,4174.0,0.004]
[1758594191504,13.42419193,4174.1,4174.0,0.004]
[1758594191898,19.74114373,4174.1,4174.0,0.004]
[1758594192933,19.10019041,4174.1,4174.0,0.004]
[1758594194326,1.32712071,4174.5,4174.0,0.004]
[1758594194327,0.64095332,4174.5,4174.0,0.7016]
[1758594194526,0.001,4174.6,4174.0,0.7016]
[1758594194527,0.001,4174.6,4174.5,2.39549646]
[1758594194905,0.001,4174.6,4174.5,3.11705142]
[1758594195245,0.001,4175.1,4174.5,3.11705142]
[1758594195246,0.001,4175.1,4175.0,3.18720958]
[1758594195426,0.001,4175.1,4175.0,9.29920958]
[1758594195600,0.001,4175.1,4175.0,12.99750958]
[1758594195798,0.001,4175.1,4175.0,13.56837768]
[1758594196205,0.001,4175.1,4175.0,12.99750958]
[1758594196498,0.001,4175.1,4175.0,10.92850958]
[1758594196722,0.001,4175.1,4175.0,12.99950958]
[1758594199135,0.001,4175.1,4175.0,10.92950958]
[1758594199332,0.001,4175.1,4175.0,13.00050958]
[1758594199643,0.001,4175.1,4175.0,6.88550958]
[1758594199831,0.001,4175.1,4175.0,0.6983]
[1758594200030,0.001,4175.1,4175.0,4.56950958]
[1758594203246,0.001,4175.1,4175.0,1.476]
[1758594203441,0.001,4175.1,4174.2,2.39565262]
[1758594203442,0.2399,4175.1,4174.5,2.071]
[1758594203749,0.001,4175.1,4174.7,0.02395381]
[1758594203912,0.001,4175.1,4174.7,0.46195381]
[1758594204118,0.001,4175.1,4174.7,0.70375381]
[1758594204440,0.001,4175.1,4175.0,0.1192]
[1758594206367,0.001,4175.1,4174.7,0.26575381]
[1758594206508,0.001,4175.1,4175.0,0.5572]
[1758594206709,0.001,4175.1,4175.0,2.95240958]
[1758594206950,0.001,4175.1,4175.0,0.799]
[1758594207563,0.001,4175.1,4175.0,3.19420958]
[1758594207770,0.001,4175.1,4175.0,3.21816167]
[1758594208073,0.001,4175.1,4175.0,0.82295209]
[1758594208345,0.2399,4175.1,4175.0,0.1192]
[1758594208671,0.668,4175.1,4175.0,0.1192]
[1758594208811,0.2399,4175.1,4175.0,0.1192]
[1758594210519,0.668,4175.1,4175.0,0.1192]
[1758594210918,3.06315221,4175.1,4175.0,0.1192]
[1758594211118,0.668,4175.1,4175.0,0.1192]
[1758594211869,2.63505221,4175.1,4175.0,0.1192]
[1758594212032,3.56626235,4175.1,4175.0,0.1192]
[1758594215650,3.13816235,4175.1,4175.0,0.1192]
[1758594216216,3.56626235,4175.1,4175.0,0.1192]
[1758594216951,2.39537056,4174.8,4174.6,0.004]
[1758594217421,2.39537056,4174.8,4174.7,0.1192]
[1758594222570,2.3953817,4174.7,4174.6,0.004]
[1758594222997,3.0623817,4174.7,4174.6,0.004]
[1758594226082,2.6342817,4174.7,4174.6,0.004]
[1758594226393,3.0631817,4174.7,4174.6,0.004]
[1758594227558,2.6342817,4174.7,4174.6,0.004]
[1758594227757,3.17517774,4174.7,4174.6,0.004]
[1758594229791,3.68841439,4174.7,4174.6,0.004]
[1758594230102,3.17517774,4174.7,4174.6,0.004]
[1758594230459,2.93627774,4174.7,4174.6,0.004]
[1758594230810,3.18712971,4174.8,4174.6,0.004]
[1758594230811,0.55335915,4174.8,4174.6,0.004]
[1758594230956,0.2298,4175.0,4174.6,0.6753]
[1758594231153,2.39521904,4175.0,4174.7,0.7905]
[1758594231356,0.001,4175.1,4174.8,0.6713]
[1758594231572,2.39617871,4175.1,4174.8,0.6713]
[1758594231770,0.001,4175.1,4174.9,0.6713]
[1758594231997,2.39617234,4175.1,4175.0,0.1192]
[1758594232178,2.9097572,4175.1,4175.0,0.1192]
[1758594233488,2.39617234,4175.1,4175.0,0.1192]
[1758594233794,2.39615221,4175.1,4175.0,0.1192]
[1758594233988,2.39615221,4175.1,4175.0,0.5607]
[1758594234301,2.39615221,4175.1,4175.0,0.1192]
[1758594235201,0.001,4175.1,4175.0,0.1192]
[1758594235403,0.001,4175.1,4175.0,0.5607]
[1758594235568,0.001,4175.1,4175.0,3.18570958]
[1758594235969,0.001,4175.1,4175.0,6.07266167]
[1758594236176,0.001,4175.1,4175.0,6.04870958]
[1758594237182,0.001,4175.1,4175.0,10.08270958]
[1758594240298,0.001,4175.1,4175.0,7.0162]
[1758594240466,0.001,4175.1,4175.0,9.41140958]
[1758594241204,0.001,4175.1,4175.0,10.08270958]
[1758594243314,0.001,4175.1,4175.0,0.1192]
[1758594243501,2.63575221,4175.1,4175.0,0.1192]
[1758594243705,3.06465221,4175.1,4175.0,0.1192]
[1758594244786,3.06465221,4175.1,4174.6,0.004]
[1758594244787,3.61072482,4175.1,4174.6,0.004]
[1758594244986,2.39526695,4174.9,4174.8,0.1192]
[1758594245443,3.06376695,4174.9,4174.8,0.1192]
[1758594246090,2.63486695,4174.9,4174.8,0.1192]
[1758594247510,3.06376695,4174.9,4174.8,0.1192]
[1758594248549,2.3953817,4174.7,4174.6,0.004]
[1758594248898,3.0638817,4174.7,4174.6,0.004]
[1758594250118,2.3953817,4174.7,4174.6,0.004]
[1758594250747,2.6349817,4174.7,4174.6,0.004]
[1758594255619,0.2396,4174.7,4174.6,0.004]
[1758594255821,5.39616225,4175.1,4174.6,0.4517]
[1758594256012,3.001,4175.1,4174.6,0.4517]
[1758594256220,2.3953817,4174.7,4174.6,0.004]
[1758594256556,2.3953244,4174.8,4174.6,0.004]
[1758594256759,2.39526967,4174.9,4174.6,0.004]
[1758594256963,2.3953383,4174.8,4174.6,0.4517]
[1758594257163,2.3953817,4174.7,4174.6,0.004]
[1758594257674,2.39533545,4174.8,4174.6,0.004]
[1758594257966,2.39526695,4174.9,4174.6,0.004]
[1758594258153,2.3953817,4174.7,4174.6,0.004]
[1758594258535,2.6238817,4174.7,4174.6,0.004]
[1758594258770,2.3953817,4174.7,4174.6,0.004]
[1758594259370,7.28931284,4174.7,4174.6,0.004]
[1758594260536,7.42295894,4174.7,4174.6,0.004]
[1758594261334,7.28931284,4174.7,4174.6,0.004]
[1758594261739,2.39566863,4174.2,4174.1,0.004]
[1758594261938,3.3881543,4174.2,4174.1,0.004]
[1758594262134,7.0668543,4174.2,4174.1,0.004]
[1758594262938,7.28944556,4174.2,4174.1,0.004]
[1758594263676,2.39589822,4173.8,4173.4,0.004]
[1758594263874,10.93701508,4173.8,4173.4,0.004]
[1758594264047,11.74918783,4173.8,4173.4,0.004]
[1758594264543,11.61571508,4173.8,4173.4,0.004]
[1758594265474,11.39312382,4173.8,4173.4,0.004]
[1758594265664,6.68842382,4173.8,4173.4,0.004]
[1758594265870,10.71442382,4173.8,4173.4,0.004]
[1758594266068,10.71442382,4173.8,4173.5,0.1192]
[1758594266069,5.39589822,4173.8,4173.5,0.1192]
[1758594266378,5.39589822,4173.8,4173.7,0.4517]
[1758594266742,5.39589822,4173.8,4173.7,0.6919]
[1758594266945,5.39589822,4173.8,4173.7,0.8111]
[1758594267344,3.0,4173.8,4173.7,0.8111]
[1758594267545,5.39578357,4174.0,4173.7,0.8111]
[1758594267850,2.39585032,4173.9,4173.7,0.1232]
[1758594268085,2.39589822,4173.8,4173.7,0.1232]
[1758594268245,3.0,4174.1,4173.8,0.6879]
[1758594268581,2.39580178,4174.0,4173.9,0.6879]
[1758594268880,2.39589822,4173.8,4173.7,0.1232]
[1758594269248,2.39589822,4173.8,4173.7,0.8111]
[1758594270248,2.3958464,4173.9,4173.7,0.8111]
[1758594270462,2.3958464,4173.9,4173.8,0.6879]
[1758594270989,2.3957989,4174.0,4173.8,0.8071]
[1758594271161,2.39584082,4173.9,4173.8,0.8071]
[1758594271489,0.2285,4174.5,4173.9,0.6879]
[1758594271678,2.3956754,4174.2,4173.9,0.6879]
[1758594271981,0.47906717,4174.7,4173.7,0.004]
[1758594271982,2.39561124,4174.3,4174.2,0.1192]
[1758594272569,2.62411124,4174.3,4174.2,0.1192]
[1758594273575,3.0,4174.6,4174.2,0.1192]
[1758594273752,2.39561124,4174.3,4174.2,0.1192]
[1758594273948,2.39561124,4174.3,4170.9,2.0028693]
[1758594273949,7.30506812,4174.3,4170.9,2.0028693]
[1758594274154,2.39708015,4171.8,4171.0,0.6879]
[1758594274471,2.39714797,4171.7,4171.0,0.6879]
[1758594274670,2.39718196,4171.6,4171.0,0.6879]
[1758594274980,2.39734959,4171.3,4171.0,0.6879]
[1758594275194,2.39744911,4171.1,4170.9,2.0028693]
[1758594275376,2.39744911,4171.1,4170.7,6.3802]
[1758594275595,2.39744911,4171.1,4170.7,6.14]
[1758594275749,2.39740045,4171.2,4170.8,0.6879]
[1758594276083,2.39728771,4171.4,4170.9,0.4477]
[1758594276474,2.39728771,4171.4,4170.9,0.6879]
[1758594278287,2.39722654,4171.5,4170.9,0.6879]
[1758594278485,2.39727004,4171.5,4170.9,0.6879]
[1758594278677,2.3972317,4171.5,4170.9,0.6879]
[1758594279277,2.39722201,4171.5,4170.9,0.6879]
[1758594279488,2.39719561,4171.6,4170.9,0.6879]
[1758594279684,0.94890833,4172.5,4171.0,0.71187506]
[1758594279964,0.94890833,4172.5,4171.1,0.6879]
[1758594279965,2.39710668,4171.7,4171.1,0.6879]
[1758594280183,2.39710668,4171.7,4171.2,0.6879]
[1758594280801,2.39705592,4171.8,4171.3,0.6879]
[1758594281495,2.39699918,4171.9,4171.3,0.6879]
[1758594281800,2.39706207,4171.8,4171.4,0.4477]
[1758594281987,3.0,4172.1,4171.4,0.4477]
[1758594282168,2.39699243,4171.9,4171.1,2.39744583]
[1758594282496,4.064,4172.4,4171.3,2.39728444]
[1758594282708,4.064,4172.4,4171.4,0.71187276]
[1758594282709,3.0,4172.3,4171.4,0.71187276]
[1758594282872,3.0,4172.3,4171.5,0.2402]
[1758594283099,2.39688151,4172.1,4171.5,0.2402]
[1758594283394,2.39698744,4172.0,4171.5,0.2402]
[1758594283765,2.39698744,4172.0,4171.5,0.6879]
[1758594283966,2.39698744,4172.0,4171.9,0.1192]
[1758594284678,3.4502,4172.4,4171.9,0.1192]
[1758594284998,2.39687977,4172.1,4171.9,0.1192]
[1758594285194,2.39693192,4172.0,4171.9,0.1192]
[1758594285765,0.2285,4172.2,4171.9,0.1192]
[1758594286083,2.39693192,4172.0,4171.9,0.1192]
[1758594287610,0.2268,4172.1,4171.9,0.1192]
[1758594287611,2.62368278,4172.1,4171.9,0.1192]
[1758594287907,2.39693192,4172.0,4171.9,0.1192]
[1758594288115,2.62373192,4172.0,4171.9,0.1192]
[1758594289100,0.2268,4172.0,4171.9,0.1192]
[1758594289308,2.39693192,4172.0,4171.9,0.1192]
[1758594290415,2.39687939,4172.1,4171.9,0.1192]
[1758594290785,2.62367939,4172.1,4171.9,0.1192]
[1758594291810,2.62373192,4172.0,4171.9,0.1192]
[1758594292185,3.13486007,4172.0,4171.9,0.1192]
[1758594292386,2.62373192,4172.0,4171.9,0.1192]
[1758594292733,1.45582697,4172.0,4171.8,0.004]
[1758594292882,5.90812622,4171.9,4171.8,0.004]
[1758594293282,6.58802622,4171.9,4171.8,0.004]
[1758594293984,6.80983019,4171.9,4171.8,0.004]
[1758594294179,2.39721922,4171.5,4171.4,0.004]
[1758594294451,29.82420306,4171.5,4171.4,0.004]
[1758594294596,25.03349214,4171.1,4171.0,0.004]
[1758594294796,35.04267284,4171.1,4171.0,0.004]
[1758594295037,35.72257284,4171.1,4171.0,0.004]
[1758594295394,36.99968222,4171.1,4171.0,0.004]
[1758594296168,36.86668541,4171.1,4171.0,0.004]
[1758594296320,3.0,4171.0,4169.3,0.665]
[1758594296523,2.39809652,4170.0,4169.3,0.665]
[1758594296701,2.39809652,4170.0,4169.4,0.665]
[1758594297237,2.39798863,4170.2,4169.4,0.4277]
[1758594297413,2.90817904,4170.1,4169.5,0.2373]
[1758594297615,2.39803558,4170.1,4169.5,0.2373]
[1758594297801,2.39797527,4170.2,4169.5,0.2373]
[1758594298001,0.51015627,4170.1,4169.5,0.2373]
[1758594298231,6.68373365,4170.3,4169.5,0.2373]
[1758594298424,0.51012459,4170.2,4169.5,0.2373]
[1758594298624,0.51012459,4170.1,4169.5,0.2373]
[1758594298823,2.39803522,4170.1,4169.5,0.2373]
[1758594299137,2.908227,4170.0,4169.3,0.2373]
[1758594299325,4.5101,4170.3,4169.4,0.4277]
[1758594299535,0.51013428,4170.2,4169.5,0.26128369]
[1758594299755,2.39786827,4170.4,4169.6,0.4277]
[1758594299911,0.51017149,4170.3,4169.7,0.2373]
[1758594300111,2.39786827,4170.4,4169.8,0.4277]
[1758594300431,0.51034123,4170.3,4169.9,0.2373]
[1758594300629,0.2268,4170.7,4168.8,2.072]
[1758594300630,2.39786213,4170.4,4169.6,2.39830671]
[1758594300831,0.51034888,4170.3,4170.0,0.665]
[1758594301030,3.0,4170.6,4170.1,0.2373]
[1758594301250,5.90840601,4170.5,4170.1,0.665]
[1758594301421,0.51055923,4170.4,4170.1,0.665]
[1758594301627,0.51055923,4170.3,4170.1,0.665]
[1758594301948,7.056,4171.0,4170.2,0.665]
[1758594302147,2.39772938,4170.7,4170.2,0.665]
[1758594302324,0.51055195,4170.6,4170.2,0.665]
[1758594302524,3.0,4170.9,4169.6,6.129]
[1758594302737,2.39786514,4170.4,4169.6,6.129]